Cogmind - Beta 17 @@@ ROGUE MODE // 2026.08.02 @ 18:04:02 Player: Petvaria Result: Destroyed by UE-EZG(g) with Salvaging Laser Performance ------------- Evolutions (0) 0 Regions Visited (4) 800 Robots Destroyed (31) 155 Value Destroyed (940) 940 Prototype IDs (22) 440 Alien Tech Used (0) 0 Bonus (2702) 2702 TOTAL SCORE: 5037 Bonus ------- Delivered SUBCON Basin 2000 Registered with UFD 300 Met Optimus in HQ 500 Friendly Fire -98 Cogmind --------- Core Integrity 0/250 Matter 269/300 Energy 170/170 System Corruption 0% Temperature Cool (12) Movement Rolling (190) Ox6 Location -8/Scraptown Parts ------- > --- POWER (1) -------- Makeshift Power Source > --- PROPULSION (2) --- Spiked Treads Compact Wheel > --- UTILITY (2) ------ Improved Heat Sink Huge Storage Unit > --- WEAPON (2) ------- Phase Cannon Rocket Launcher > --- INVENTORY (25) --- Light Treads Spiked Treads Spiked Treads Medium Treads Maxwheels Improved Heat Sink Vampiric Humpback Advanced Terrain Scanner Improved Terrain Scan Processor Improved Particle Charger Tech Extrapolator High-powered Tractor Beam Heavy Laser Particle Cannon Ion Cannon Battle Rifle Gauss Rifle Battle Cannon Plasma Cutter CPS Tube (2) Thermal Lance Peak State ------------ > --- POWER ------------ Makeshift Power Source > --- PROPULSION ------- Spiked Treads Compact Wheel > --- UTILITY ---------- Huge Storage Unit > --- WEAPON ----------- Subdweller Laser Subdweller Laser > --- INVENTORY -------- Light Ion Engine Spiked Treads Spiked Treads Maxwheels Battle Rifle Battle Rifle Rocket Launcher SUBCON Basin [Rating: 34] Favorites ----------- Power Light Ion Engine Engine Light Ion Engine Propulsion Spiked Treads Treads Spiked Treads Wheel Compact Wheel Utility Huge Storage Unit Device Improved Heat Sink Storage Huge Storage Unit Protection Scrap Shield Weapon Subdweller Laser Energy Gun Subdweller Laser Energy Cannon Phase Cannon Ballistic Gun Assault Rifle Ballistic Cannon Battle Cannon Launcher Rocket Launcher Special Weapon Mining Laser Build | -11 -10 -10 -8 -8 ------- Run | Yrd Mat Sub Rec Scr Slots Evolved . | . . . . . Power . | . . . . . Propulsion . | . . . . . Utility . | . . . . . Weapon . | . . . . . Parts Attached 36 | 6 2 20 1 7 Power 3 | . 1 1 1 . Engine 3 | . 1 1 1 . Core . | . . . . . Reactor . | . . . . . Propulsion 9 | 2 . 7 . . Treads 7 | 2 . 5 . . Leg . | . . . . . Wheel 2 | . . 2 . . Hover . | . . . . . Flight . | . . . . . Utility 8 | 2 1 3 . 2 Device 4 | 1 . 1 . 2 Storage 2 | 1 1 . . . Processor . | . . . . . Hackware . | . . . . . Protection 2 | . . 2 . . Artifact . | . . . . . Weapon 16 | 2 . 9 . 5 Energy Gun 4 | . . 3 . 1 Energy Cannon 2 | . . . . 2 Ballistic Gun 4 | 2 . 1 . 1 Ballistic Cannon 2 | . . 2 . . Launcher 3 | . . 2 . 1 Special Weapon 1 | . . 1 . . Impact Weapon . | . . . . . Slashing Weapon . | . . . . . Piercing Weapon . | . . . . . Special Melee Weapon . | . . . . . Unidentified Prototypes . | . . . . . Parts Lost 4 | . . 4 . . Power 1 | . . 1 . . Propulsion 1 | . . 1 . . Utility 2 | . . 2 . . Weapon . | . . . . . Highest Loss Streak 2 | . . 2 . . To Critical Strikes 1 | . . 1 . . Average Backups 14 | 4 12 13 7 19 Power . | 1 1 . . . Propulsion 3 | 1 2 2 3 4 Utility 2 | . 2 . . 5 Weapon 8 | . 6 8 3 7 Tool/Special . | . . . . . Unused Backups 28 | . 2 6 . 20 Power . | . . . . . Propulsion 3 | . . . . 3 Utility 9 | . . 1 . 8 Weapon 13 | . 2 5 . 6 Tool/Special 3 | . . . . 3 Average Slot Usage (%) 89 | . 95 91 77 86 Engine 13 | . 9 14 14 14 Treads 24 | . 28 27 16 14 Wheel 3 | . . . 11 14 Device 5 | . 14 2 . 12 Storage 10 | . 14 9 14 14 Protection 5 | . . 7 . . Energy Gun 8 | . . 9 20 6 Ballistic Gun 7 | . 28 5 . 8 Ballistic Cannon 5 | . . 8 . . Special Weapon 3 | . . 4 . . Peak Build Rating 34 | 6 9 32 34 30 Average Rating 16 | 4 8 14 29 23 On Entrance 12 | . 6 9 32 13 Avg Prop Armor Cover (%) 18 | . . . 19 17 Naked Turns . | . . . . . Heaviest Build 97 | 8 88 94 92 97 Greatest Support 40 | 40 40 40 40 16 Greatest Overweight (x) 6 | . 2 2 5 6 Average Overweight (x) 2 | . 1 1 4 5 Largest Inventory Capacity 25 | 8 25 25 25 25 Average Capacity 20 | 7 24 18 25 25 Most Carried 25 | 7 18 25 25 25 Average Carried 17 | 4 12 15 22 22 Final Capacity 25 | 8 25 25 25 25 Final Carried 25 | 6 18 25 11 25 Class Distribution -------------------- 78% | Mutant 18% | Derelict-Mutant 3% | Subdweller-Mutant Dominant Class ---------------- Mutant | -10/Materials Mutant | -10/Subcaves Mutant | -8/Recycling Mutant | -8/Scraptown Resources | -11 -10 -10 -8 -8 ----------- Run | Yrd Mat Sub Rec Scr Matter Collected 1660 | 250 88 1177 . 145 Remotely . | . . . . . Salvage Created 976 | 24 272 595 . 85 Parts 64 | 2 16 41 . 5 Haulers Intercepted 1 | . 1 . . . Recyclers Shooed 4 | 1 3 . . . Parts Field Recycled . | . . . . . Retrieved Matter . | . . . . . Parts Self-Destructed 4 | . . 4 . . Prevented . | . . . . . Parts Restored . | . . . . . Kills | -11 -10 -10 -8 -8 ------- Run | Yrd Mat Sub Rec Scr Combat Hostiles Destroyed 25 | . 4 19 . 2 Guns 10 | . 4 6 . . Cannons 9 | . . 9 . . AOE 6 | . . 4 . 2 Classes Destroyed 11 | 1 3 5 . 2 Tunneler 2 | 1 1 . . . Hauler 1 | . 1 . . . Recycler 1 | . 1 . . . Turret 2 | . . 2 . . Swarmer 4 | . . 4 . . Grunt 6 | . 4 2 . . Artisan 2 | . . 2 . . Subdweller 13 | . . 13 . . Federalist 1 | . . . . 1 Scientist 1 | . . 1 . . Scrapper 1 | . . . . 1 Best Kill Streak 4 | 1 2 4 . 2 Combat Bots Only 4 | . 2 4 . 2 Max Kills in Single Turn 5 | 1 1 5 . 2 Gunslinging . | . . . . . Exploded 4 | . . 4 . 2 Melee . | . . . . . Uniques/NPCs Destroyed . | . . . . . Combat | -11 -10 -10 -8 -8 -------- Run | Yrd Mat Sub Rec Scr Hostile Shots Fired 145 | . 19 112 . 14 Missed 45 | . 1 40 . 4 Hits 100 | . 18 72 . 10 Projectile 100 | . 18 72 . 10 Critical Strikes 2 | . . 2 . . Damage Taken 1550 | . 196 1203 . 151 Core 259 | . 64 156 . 39 Absorbed by Shields . | . . . . . Core Remaining (%) 100 | 100 . . . . Volleys Fired 248 | 8 24 188 . 28 Largest 2 | 2 2 2 . 1 Hottest 120 | 40 40 120 . 85 Shots Fired 326 | 16 48 234 . 28 Gun 162 | 16 48 98 . . Cannon 146 | . . 119 . 27 Launcher 6 | . . 5 . 1 Special 12 | . . 12 . . Kinetic 223 | 16 48 159 . . Thermal 97 | . . 70 . 27 Explosive 6 | . . 5 . 1 Electromagnetic . | . . . . . Robot Hit Streak 18 | 6 5 18 . . Robot Miss Streak 3 | 1 3 2 . 1 Penetration Max . | . . . . . Secondary Targets . | . . . . . Shots Hit Robots 127 | 11 24 92 . . Core Hits 61 | 3 13 40 . 5 Critical Kills 1 | . . 1 . . Critical Parts Destroyed . | . . . . . Critical Strikes 2 | . . 2 . . Destroy 1 | . . 1 . . Blast 1 | . . 1 . . Melee Attacks . | . . . . . Impact . | . . . . . Slashing . | . . . . . Piercing . | . . . . . Sneak Attacks . | . . . . . Combat Hostiles . | . . . . . Follow-up Attacks . | . . . . . Damage Inflicted 2501 | 93 235 1983 2 188 Guns 1216 | 93 210 913 . . Cannons 715 | . . 715 . . Explosions 543 | . . 355 . 188 Melee . | . . . . . Ramming 27 | . 25 . 2 . Kinetic 1332 | 93 210 1029 . . Thermal 599 | . . 599 . . Explosive 543 | . . 355 . 188 Electromagnetic . | . . . . . Impact . | . . . . . Slashing . | . . . . . Piercing . | . . . . . Highest Corruption 2 | . 2 2 2 . Average Corruption 2 | . 2 2 2 . Corruption Purged . | . . . . . Corruption Blocked . | . . . . . Effects 136 | . 2 125 9 . Message Errors 37 | . 1 35 1 . Matter Fused 37 | . . 35 2 . Heat Flow Errors 14 | . . 12 2 . Energy Discharges 17 | . . 15 2 . Parts Fused 1 | . . 1 . . Data Loss (minor) 16 | . 1 14 1 . Data Loss (major) 3 | . . 2 1 . Misfires 6 | . . 6 . . Alerts 2 | . . 2 . . Weapon Failures 3 | . . 3 . . Overload Shots . | . . . . . Overflow Damage 17 | . . 17 . . Projectiles 13 | . . 13 . . Explosions 4 | . . 4 . . Melee . | . . . . . Knockbacks 4 | . . 4 . . Impact . | . . . . . Kinetic 4 | . . 4 . . Secondary . | . . . . . Self-Inflicted Damage . | . . . . . Shots . | . . . . . Rammed 6 | . 5 . 1 . Targets Rammed 7 | . 6 . 1 . Kicked . | . . . . . Crushed 1 | . 1 . . . Highest Temperature 255 | . 12 255 200 234 Average Temperature 72 | . 6 89 86 71 Received Heat Transfer 549 | . 108 369 . 72 Effects 1 | . . . . 1 Energy Bleed 1 | . . . . 1 Siege Activations . | . . . . . Martial Activations . | . . . . . Shielding Activations . | . . . . . Robots Disrupted . | . . . . . Combat Hostiles . | . . . . . Robots Corrupted . | . . . . . Combat Hostiles . | . . . . . Parts Fried . | . . . . . Impact Corruptions . | . . . . . Robots Melted . | . . . . . Combat Hostiles . | . . . . . Parts Melted 7 | . . 6 . 1 Heat Transferred 725 | . . 725 . . Parts Sabotaged . | . . . . . Parts Stolen . | . . . . . Parts Stripped . | . . . . . Power Chain Reactions . | . . . . . Alert | -11 -10 -10 -8 -8 ------- Run | Yrd Mat Sub Rec Scr Maximum Alert Level . | . . . . . Low Security (%) 100 | 100 100 . 100 . Level 1 . | . . . . . Level 2 . | . . . . . Level 3 . | . . . . . Level 4 . | . . . . . Level 5 . | . . . . . High Security . | . . . . . Max Security . | . . . . . Peak Influence 67 | 5 67 . 50 . Initial . | . . . . . Average 8 | . 12 . 6 . Influence Increases 557 | 5 112 320 120 . Destroy 0b10 Robot/C 240 | . 80 160 . . Destroy 0b10 Robot/NC 20 | 5 15 . . . Destroy Leader 12 | . 2 10 . . Select Force Hacks 120 | . . . 120 . Lose Combat Pursuer 165 | . 15 150 . . Influence Decreases 557 | 5 112 320 120 . Time Decay 507 | 5 112 310 80 . Lost Part 10 | . . 10 . . Purge Threat 40 | . . . 40 . Squads Dispatched . | . . . . . Investigation . | . . . . . Extermination . | . . . . . Reinforcement . | . . . . . Assault . | . . . . . Garrison . | . . . . . Intercept . | . . . . . Searches Triggered . | . . . . . Construction Impeded . | . . . . . Haulers Reinforced . | . . . . . Active Scanning Responses . | . . . . . Cargo Convoy Interrupts . | . . . . . Stealth | -11 -10 -10 -8 -8 --------- Run | Yrd Mat Sub Rec Scr Distress Signals 1 | . 1 . . . Communications Jammed . | . . . . . Distress Signals . | . . . . . Times Spotted 36 | . 9 21 . 6 Peak Tracking Total 6 | . 4 6 . 5 Tactical Retreats 4 | . 1 3 . . Traps | -11 -10 -10 -8 -8 ------- Run | Yrd Mat Sub Rec Scr Traps Triggered 2 | . 1 1 . . Indirectly . | . . . . . Trap Hack Attempts . | . . . . . Triggered . | . . . . . Disarmed . | . . . . . Reprogrammed . | . . . . . Reused . | . . . . . Traps Extracted . | . . . . . Installed . | . . . . . Triggered . | . . . . . Most Traps Carried 1 | . . 1 . . Machines | -11 -10 -10 -8 -8 ---------- Run | Yrd Mat Sub Rec Scr Machines Disabled 8 | . . 4 . 4 Max in Single Turn 2 | . . 2 . 1 Machines Repaired . | . . . . . Machines Dismantled . | . . . . . Machines Sabotaged . | . . . . . Overloaded Fab Kills . | . . . . . Hacking | -11 -10 -10 -8 -8 --------- Run | Yrd Mat Sub Rec Scr Machines Accessed 14 | . 2 4 6 2 Terminals 4 | . 2 . 2 . Fabricators . | . . . . . Repair Stations . | . . . . . Recycling Units 4 | . . . 4 . Scanalyzers . | . . . . . Garrison Access . | . . . . . Total Hacks 26 | . 3 7 8 8 Successful 21 | . . 7 6 8 Failed 5 | . 3 . 2 . Catastrophic 1 | . 1 . . . Database Lockouts . | . . . . . Manual 11 | . 3 . 8 . Terminals 7 | . 3 . 4 . Fabricators . | . . . . . Repair Stations . | . . . . . Recycling Units 4 | . . . 4 . Scanalyzers . | . . . . . Garrison Access . | . . . . . Terminal Hacks 17 | . . 7 2 8 Record 4 | . . 4 . . Robot Analysis 7 | . . . . 7 Open Door 1 | . . 1 . . Unreport Threat 2 | . . . 2 . Proto ID Catalog 2 | . . 1 . 1 Release Object 1 | . . 1 . . Fabricator Hacks . | . . . . . Repair Station Hacks . | . . . . . Recycling Unit Hacks . | . . . . . Scanalyzer . | . . . . . Garrison Access Hacks . | . . . . . Unauthorized Hacks 4 | . . . 4 . Terminals . | . . . . . Fabricators . | . . . . . Repair Stations . | . . . . . Recycling Units 4 | . . . 4 . Tunnel 4 | . . . 4 . Scanalyzers . | . . . . . Garrison Access . | . . . . . Data Cores Recovered . | . . . . . Used . | . . . . . Hacking Detections 4 | . 2 . 2 . Full Trace Events . | . . . . . Feedback Events . | . . . . . Feedback Blocked . | . . . . . Robot Schematics Acquired . | . . . . . Robots Built . | . . . . . Authchips . | . . . . . Time . | . . . . . Total Robot Build Rating . | . . . . . Part Schematics Acquired . | . . . . . Parts Built . | . . . . . Authchips . | . . . . . Time . | . . . . . Total Part Build Rating . | . . . . . Part Studies Acquired . | . . . . . Parts Repaired . | . . . . . Time . | . . . . . Parts Recycled . | . . . . . Recycled Matter . | . . . . . Retrieved Matter . | . . . . . Retrieved Components . | . . . . . Parts Scanalyzed . | . . . . . Part Schematics Acquired . | . . . . . Parts Damaged . | . . . . . Bothacking | -11 -10 -10 -8 -8 ------------ Run | Yrd Mat Sub Rec Scr Used RIF Installer . | . . . . . Robots Hacked . | . . . . . Non-combat . | . . . . . Combat . | . . . . . Robot Hacks Applied . | . . . . . Relay Couplers Released . | . . . . . Fabnet Peak Effective % . | . . . . . Robots Rewired . | . . . . . Allies Hacked . | . . . . . Hacks Repelled . | . . . . . Allies | -11 -10 -10 -8 -8 -------- Run | Yrd Mat Sub Rec Scr Total Allies . | . . . . . Largest Group . | . . . . . Highest-Rated Group . | . . . . . Highest-Rated Ally . | . . . . . Total Orders . | . . . . . Ally Attacks . | . . . . . Total Damage . | . . . . . Kills . | . . . . . Allies Corrupted . | . . . . . Allies Melted 2 | . . . . 2 Intel | -11 -10 -10 -8 -8 ------- Run | Yrd Mat Sub Rec Scr Active Infowar (turns) 2468 | 31 713 1722 . 2 Sensors 2 | . . . . 2 Terrain 1380 | . . 1380 . . Seismic 1086 | 31 713 342 . . Robot Analysis Total 7 | . . . . 7 Derelict Logs Recovered 2 | . . 2 . . Drone Launches . | . . . . . Drone Recoveries . | . . . . . Exploration | -11 -10 -10 -8 -8 ------------- Run | Yrd Mat Sub Rec Scr Turns Passed 13113 | 155 713 8504 574 3167 Spaces Moved 4817 | 79 199 2687 290 1562 Core 8 | 8 . . . . Treads 2979 | 71 199 2683 26 . Legs . | . . . . . Wheels 1830 | . . 4 264 1562 Hover . | . . . . . Flight . | . . . . . Fastest Speed 50 | 50 160 130 175 175 Average Speed 228 | 148 305 259 191 175 Slowest Speed 360 | 160 320 360 360 190 Overloaded Moves . | . . . . . Propulsion Burnouts . | . . . . . Robots Hopped . | . . . . . Potential Cave-ins 8 | . . 6 . 2 Cave-ins Triggered . | . . . . . Exploration Rate (%) 53 | 5 31 92 48 92 Regions Visited 4 Branch Regions 3 Pre-discovered Areas 4 | . . . 4 . Known Exits Taken . | . . . . . Unknown Exits Taken 4 | 1 1 1 1 . Scrap Searched 19 | . . 9 . 10 Spaces Dug 36 | . . 28 . 8 Terrain Destroyed 70 | . . 50 . 20 Melee . | . . . . . Projectile 43 | . . 29 . 14 AOE 27 | . . 21 . 6 Terrain Rammed . | . . . . . Walls Destroyed . | . . . . . Machines Disabled . | . . . . . Actions | -11 -10 -10 -8 -8 --------- Run | Yrd Mat Sub Rec Scr Total 6585 | 104 255 3956 306 1964 Wait 1336 | . 6 993 4 333 Move 4813 | 78 198 2686 289 1562 Hop . | . . . . . Pick Up 85 | 12 16 30 4 23 Fast Attach 1 | . . 1 . . Attach 18 | 6 1 5 . 6 Detach 2 | . . . . 2 Swap 24 | . 1 18 2 3 Drop 41 | . 3 25 6 7 Fire 248 | 8 24 188 . 28 Melee . | . . . . . Ram . | . . . . . Kick . | . . . . . Crush 7 | . 6 . 1 . Escape Stasis . | . . . . . Rewire . | . . . . . Trap . | . . . . . Miscellaneous 10 | . . 10 . . Route ------- -11/Scrapyard -10/Materials -10/Subcaves (discovered 3 exits: [*Mat x2] / *Rec) -8/Recycling -8/Scraptown (discovered 2 exits: [*Fac x2]) History --------- Turn | Location | Event 5 | -11/Scrapyard | Discovered new exit (range 16) 156 | -11/Scrapyard | Entered Materials 309 | -10/Materials | Build established: Mutant 850 | -10/Materials | Discovered new exit (range 7) 869 | -10/Materials | Entered Subcaves 870 | -10/Subcaves | Approached by a straggling Scientist 902 | -10/Subcaves | Discovered new exit (range 16) 1046 | -10/Subcaves | Learned Materials stockpile data 1386 | -10/Subcaves | Discovered new exit (range 10) 1622 | -10/Subcaves | Shifting Twisted Machinery released Battle Cannon 1654 | -10/Subcaves | Discovered new exit (range 5) 1655 | -10/Subcaves | Shifting Twisted Machinery released Mak. Power Source 2059 | -10/Subcaves | A swath of the cavern ceiling suddenly collapsed 3264 | -10/Subcaves | Core integrity fell below 50% 3335 | -10/Subcaves | Learned location of 1 exit from Materials 3866 | -10/Subcaves | Shifting Twisted Machinery released Battle Rifle 3867 | -10/Subcaves | Shifting Twisted Machinery released Piercing Trap 4987 | -10/Subcaves | Build established: Derelict-Mutant 4988 | -10/Subcaves | Visited 4L-MR0's lab 5375 | -10/Subcaves | Disturbed a concealed Subdweller 5742 | -10/Subcaves | Shifting Twisted Machinery released Shrapnel Trap 5830 | -10/Subcaves | Shifting Twisted Machinery released Barrage Gun 6471 | -10/Subcaves | Core integrity fell below 20% 7107 | -10/Subcaves | Ambushed by angry Subdweller bent on revenge 7278 | -10/Subcaves | Visited Clippyterm 7283 | -10/Subcaves | Learned Research security intel 7283 | -10/Subcaves | Learned 40 Factory zone layouts 7395 | -10/Subcaves | Build established: Subdweller-Mutant 7785 | -10/Subcaves | Build established: Mutant 7812 | -10/Subcaves | Found Maxwheels 8635 | -10/Subcaves | Found SUBCON Basin 9373 | -10/Subcaves | Entered Recycling 9784 | -8/Recycling | Scanned before Scraplab entrance 9809 | -8/Recycling | Entered Scraplab 9943 | -8/Recycling | Discovered new exit (range 3) 9947 | -8/Recycling | Entered Scraptown 9947 | -8/Scraptown | System corruption cleaned by C-Scrubber 10416 | -8/Scraptown | Received an X-ray algorithm 10539 | -8/Scraptown | Discovered new exit (range 13) 10686 | -8/Scraptown | Visited Comm Corps 10745 | -8/Scraptown | Visited Junk Repository 10833 | -8/Scraptown | Visited Assassins FH 11160 | -8/Scraptown | Visited Junk Repository 11222 | -8/Scraptown | Visited Bundlers 11453 | -8/Scraptown | Visited Symbiants 11542 | -8/Scraptown | Visited The Evicted 11577 | -8/Scraptown | Visited UFD Registry 11601 | -8/Scraptown | Registered with UFD as "Gearparser" 11636 | -8/Scraptown | Visited Curators Association 11696 | -8/Scraptown | Visited Science Guys 11752 | -8/Scraptown | Visited Analyses Database 11932 | -8/Scraptown | Visited Chapter 10 11964 | -8/Scraptown | Visited Scrapoid Pod Storage 11988 | -8/Scraptown | Visited Scrap Suit Storage 12007 | -8/Scraptown | Visited Observation Area 12076 | -8/Scraptown | Visited Research Penetration Think Tank 12119 | -8/Scraptown | Visited Derelict Rescue Squad 12131 | -8/Scraptown | Found DRS Beacon 12352 | -8/Scraptown | Discovered new exit (range 5) 12573 | -8/Scraptown | Met Optimus 12573 | -8/Scraptown | Accepted into 0bPrime 12973 | -8/Scraptown | Civil war broke out across Scraptown 12981 | -8/Scraptown | Found Vmp. Humpback 13046 | -8/Scraptown | Found Thermal Lance 13095 | -8/Scraptown | Optimus destroyed in the chaos of civil war 13114 | -8/Scraptown | Destroyed by UE-EZG(g) with Salvaging Laser Last Messages --------------- expected!" Dropped DRS Beacon. Slug penetrates Autobeam Turret. Slug penetrates Wall. Dropped Imp. Signal Interpreter. Slug penetrates Autobeam Turret. Autobeam Turret destroyed. H4-EWV(r) destroyed. Acquired Vmp. Humpback. Machine disabled. Dropped Battle Rifle. Acquired Thermal Lance. Overheating: Energy bleed (-20). Machine disabled. ANNOUNCEMENT: The traitor Optimus has been dealt with. Put down any remaining collaborators. Ovr. Pulse Rifle melted. YV-LTD(j) destroyed. ME-41I(g) destroyed. Penetrated by Bolt. Map ----- +----------------------------------------------------+ | #????????? | | """""""""""""""""""""" "## !!! !#????????? | | """""""""""""""""""""" "#? #"""""#""#????????? | | ## ################"" "#??#?#####???????????? | | #?????????#"" "#???####?????????????? | | X"?????????#"" "#??""" #?????????????? | | "" "" ##????????#"" "#?? "#?????????????? | | " "" X"???????###"" "#? "#?????????????? | | " ######### #"" "## !"#?????????????? | | "" "#?????????????? | | "" =!%="## "#?????????????? | | " ######### #""*[!!="## "#?????????????? | | " "" ""#??????###""[=%! #?""""#?????????????? | | "" "" ##????????#""=* j! #?#####?????????????? | | X"#????????#""[ g=% #########???????????? | | ##????????#"" [!=h # """"""" "?????????? | | ## ################"" %! # """""" "#????????? | | """"""""""""""""""""" =!= # " " "#????????? | | """"""""" """"" "" " !%[ """ "#????????? | | [%*= ![ !## "#????????? | | !!% !%% ! ## %! ""#????????? | | * !*%= ;# != "#????????? | | !! = =!=!! %!!!%;# "#????????? | | =% !=*% ==!![; # #"#????????? | | """"" """"""""" %"""" *% # ########??????????? | | ###### ###########%######@%=####?????????????????? | | #" #??#===!= ; [#????????????????????? | | # "#??# % # #????????????????????? | | #"" "" "&#??#"" """; #????????????????????? | | #"" "" "&#??#" ""# %#????????????????????? | | #"" &####" X " ""# [#????????????????????? | | #"""" ""## ; """""""# ############?????????? | | #""" """ " ""########[![ #?????????? | | #" " "#####??????#!%== ##?????????? | | """" "[""##??????????#!*! #?????????? | | "" "" X " "#???????????# !% #?????????? | | # """""""""#???????????# #?????????? | | #############???????????# #;##########?????????? | | ??#######################! #####????????????????? | | #"""##"""##"""##"""##"|"#%! """"#????????????????? | | #|""##" "##"""##"" ##" # !!"" "#????????????????? | | "#????????????????? | | " "#????????????????? | | """"#????????????????? | | #"""##""|##"|"##!! ##""|## ######????????????????? | | #"""##"""##"""##"""##"""####?????????????????????? | | ??????##############?####????????????????????????? | | ?????????????????????????????????????????????????? | | ?????????????????????????????????????????????????? | | ?????????????????????????????????????????????????? | +----------------------------------------------------+ Best States ------------- Heat Dissipation 39 Energy Generation 15 Energy Capacity 250 Matter Stores 300 Matter Capacity 300 Sight Range 16 Terrain Scan Range 16 Terrain Scan Density 10 Armor Coverage 800 Evasion (%) 50 Recoil Reduction 2 Item Schematics ----------------- None Robot Schematics ------------------ None Fabricated ------------ Nothing Repaired ---------- Nothing Studied --------- None Alien Tech Used ----------------- None Achievements -------------- None Challenges ------------ None Game ------ Seed WeaponsThiefTreads Manual? 0 Play Time 00:48:20 Cumulative 541.9 hours Start 2026.08.02 @ 17:16:11 End 2026.08.02 @ 18:04:02 Sessions 1 Manual Loads 0 Difficulty Rogue Special Mode None Game No. 309 Rogue 309 Adventurer 0 Explorer 0 Win Type - Total 36 Types 17/2/7/2/1/1/1/2/1/2 Lore% 97 Gallery% 92 Achievement% 85 Wizard Run 0 Options --------- Layout 1 ASCII 0 Keyboard 0 Movement Numpad Keybinds 0 Fullscreen 1 Font 24/Proggy Map View 50x35 Zoom Use 0% Tactical HUD 0 Map Filters NONE Filters NONE Steam 1 RUN: 0f211653-07f6-4c84-b5eb-7aea8996b692